{"text_format":"3","workbook":"xlsx","n_sheets":2,"sheets":["Sheet1","Sheet2"],"not_rendered":{"defined_names":3},"read":"whole","date_system":"1900"}

{"sheet":"Sheet1","index":0,"n_rows":292,"n_cols":10,"rows_kept":292,"merged":[[0,0,0,6],[2,0,2,9],[4,0,4,9],[291,0,291,4]]}
["FAKULTET PROMETNIH ZNANOSTI",{"$nulls":8},"Datum ispisa: 12.01.2026"]
[]
["Izvješće o isplatama - po Naputku"]
[]
["Godina: 2025. Datum dokumenta: od 01.12.2025 do 31.12.2025. Konto izvršenja: od 3 do 59. Ovlaštenja:"]
["Redni broj","Naziv primatelja","OIB","Sjedište (mjesto i adresa)","Iznos","Valuta","Godina i mjesec","Vrsta rashoda","Naziv konta","Naziv isplatitelja"]
[{"$f":"ROW(A2)","v":{"v":2,"d":"2."}},null,"n.p.","n.p.",{"$f":"42503.84+932.23","v":{"v":43436.07,"d":"43,436.07"}},"EUR","2025/12","3211","Službena putovanja","FAKULTET PROMETNIH ZNANOSTI"]
[{"$f":"ROW(A3)","v":{"v":3,"d":"3."}},null,"n.p.","n.p.",{"v":4000,"d":"4,000.00"},"EUR","2025/12","3213","Stručno usavršavanje zaposlenika","FAKULTET PROMETNIH ZNANOSTI"]
[{"$f":"ROW(A4)","v":{"v":4,"d":"4."}},null,"n.p.","n.p.",{"v":800.5,"d":"800.50"},"EUR","2025/12","3214","Ostale naknade troškova zaposlenima","FAKULTET PROMETNIH ZNANOSTI"]
[{"$f":"ROW(A5)","v":{"v":5,"d":"5."}},"REFUNDACIJA ZAPOSLENICI","n.p.","n.p.",226.31,"EUR","2025/12","3231","Usluge telefona, interneta, pošte i prijevoza","FAKULTET PROMETNIH ZNANOSTI"]
[{"$f":"ROW(A6)","v":{"v":6,"d":"6."}},"REFUNDACIJA ZAPOSLENICI","n.p.","n.p.",{"v":84.5,"d":"84.50"},"EUR","2025/12","3235","Zakupnine i najamnine","FAKULTET PROMETNIH ZNANOSTI"]
[{"$f":"ROW(#REF!)","v":{"$error":"#REF!"}},"OPENAL, LLC","n.p.","548 MARKET STREET PMB 97273, SAN FRANCISCO",147.05,"EUR","2025/12","3235","Zakupnine i najamnine","FAKULTET PROMETNIH ZNANOSTI"]
[{"$f":"ROW(A7)","v":{"v":7,"d":"7."}},"CROATIA OSIGURANJE D.D.","26187994862","MIRAMARSKA 22,, Zagreb",{"v":6634,"d":"6,634.00"},"EUR","2025/12","3292","Premije osiguranja","FAKULTET PROMETNIH ZNANOSTI"]
[{"v":8,"d":"8."},"BOSS RIDE","36894111346","STIPANOVIĆEVA ULICA31, ZAGREB",7.93,"EUR","2025/12","3231","Usluge telefona, interneta, pošte i prijevoza","FAKULTET PROMETNIH ZNANOSTI"]
[{"v":9,"d":"9."},"AG EXPRESS DELIVERY","43488991934","ŽITNJAK BOGDANI 18, ZAGREB",7.94,"EUR","2025/12","3231","Usluge telefona, interneta, pošte i prijevoza","FAKULTET PROMETNIH ZNANOSTI"]
[{"v":10,"d":"10."},"GRENKE GC RENTING CROATIA D.O.O.","44115087893","AV.VEĆESLAVA HOLJEVCA 40,, Zagreb",{"v":717.3,"d":"717.30"},"EUR","2025/12","3235","Zakupnine i najamnine","FAKULTET PROMETNIH ZNANOSTI"]
[{"v":11,"d":"11."},"V.V.V.PICCOLO","49481632705","KOZARI BOK 1B, ZAGREB",5.93,"EUR","2025/12","3231","Usluge telefona, interneta, pošte i prijevoza","FAKULTET PROMETNIH ZNANOSTI"]
[{"v":12,"d":"12."},"BENEFIT SYSTEMS D.O.O.","57845277445","HEINZELOVA 44, Zagreb",{"v":2204,"d":"2,204.00"},"EUR","2025/12","3239","Ostale usluge","FAKULTET PROMETNIH ZNANOSTI"]
[{"v":13,"d":"13."},"MISWAK","84056704067","ULICA TOMISLAVA KRIZMANA 7, ZAGREB",{"v":11.1,"d":"11.10"},"EUR","2025/12","3231","Usluge telefona, interneta, pošte i prijevoza","FAKULTET PROMETNIH ZNANOSTI"]
[{"v":14,"d":"14."},"QUAHWA D.O.O.","96516152119","ULICA NIKOLE TESLE 9/1, ZAGREB",43.75,"EUR","2025/12","3232","Usluge tekućeg i investicijskog održavanja","FAKULTET PROMETNIH ZNANOSTI"]
[{"v":15,"d":"15."},null,"n.p.","n.p.",{"v":133471.11,"d":"133,471.11"},"EUR","2025/12","3121","Ostali rashodi za zaposlene","FAKULTET PROMETNIH ZNANOSTI"]
[{"v":16,"d":"16."},"ADEX TATRY s.r.o.","n.p.","STARA LESNA 516, STARA LESNA",{"v":1838,"d":"1,838.00"},"EUR","2025/12","3211","Službena putovanja","FAKULTET PROMETNIH ZNANOSTI"]
[{"v":17,"d":"17."},"META PLATFORMS FACEBOOK IRELAND LIMITED","n.p.","MERRION ROAD,DUBLIN 4, DUBLIN",146.74,"EUR","2025/12","3233","Usluge promidžbe i informiranja","FAKULTET PROMETNIH ZNANOSTI"]
[{"v":18,"d":"18."},"VILNIUS GEDIMINAS TECHNICAL UNIVERSITY","n.p.","SAULETEKIO AL. 11, VILNIUS",{"v":350,"d":"350.00"},"EUR","2025/12","3213","Stručno usavršavanje zaposlenika","FAKULTET PROMETNIH ZNANOSTI"]
[{"v":19,"d":"19."},"V.D. JAVNOG BILJEŽNIKA IVAN VULJANIĆ","GDPR","GDPR",52.98,"EUR","2025/12","3295","Pristojbe i naknade","FAKULTET PROMETNIH ZNANOSTI"]
[{"v":20,"d":"20."},"ZAGORKA TOURS J.D.O.O.","03599696558","LIVADARSKA 16, VRBOVEC",{"v":278,"d":"278.00"},"EUR","2025/12","3239","Ostale usluge","FAKULTET PROMETNIH ZNANOSTI"]
[{"v":21,"d":"21."},"STUDENTSKI CENTAR ZGB","22597784145","SAVSKA CESTA 25,, Zagreb",{"v":7723.76,"d":"7,723.76"},"EUR","2025/12","3237","Intelektualne i osobne usluge","FAKULTET PROMETNIH ZNANOSTI"]
[{"v":22,"d":"22."},"FAKULTET STROJARSTVA I BRODOGRANJE SVEUČILIŠTE U ZAGREBU","22910368449","I.LUČIĆA 5,, Zagreb",106.25,"EUR","2025/12","3232","Usluge tekućeg i investicijskog održavanja","FAKULTET PROMETNIH ZNANOSTI"]
[{"v":23,"d":"23."},"STILLMARK ZAGREB D.O.O.","54598630910","ULICA GRADA VUKOVARA 269G, ZAGREB",{"v":48.8,"d":"48.80"},"EUR","2025/12","3221","Uredski materijal i ostali materijalni rashodi","FAKULTET PROMETNIH ZNANOSTI"]
[{"v":24,"d":"24."},"KONZUM PLUS","62226620908","ZAGREB,, M. ČAVIĆA 1/A",{"v":359.5,"d":"359.50"},"EUR","2025/12","3293","Reprezentacija","FAKULTET PROMETNIH ZNANOSTI"]
[{"v":25,"d":"25."},"NARODNE NOVINE D.D.","64546066176","SAVSKI GAJ XIII. PUT 6,, Zagreb",{"v":1159.04,"d":"1,159.04"},"EUR","2025/12","3221","Uredski materijal i ostali materijalni rashodi","FAKULTET PROMETNIH ZNANOSTI"]
[{"v":26,"d":"26."},"CULMENA D.O.O.","72205564976","MAKSIMIRSKA 115, ZAGREB",{"v":399,"d":"399.00"},"EUR","2025/12","3213","Stručno usavršavanje zaposlenika","FAKULTET PROMETNIH ZNANOSTI"]
[{"v":27,"d":"27."},"FRUCTUS PROIZVODNJA VOĆNIH VINA I LIKERA","80853769751","KRALJA ZVONIMIRA 63, ORAHOVICA",{"v":168.6,"d":"168.60"},"EUR","2025/12","3293","Reprezentacija","FAKULTET PROMETNIH ZNANOSTI"]
[{"v":28,"d":"28."},"MULLER TRGOVINA ZGB","84698789700","NADINSKA 29,, Zagreb",8.58,"EUR","2025/12","3293","Reprezentacija","FAKULTET PROMETNIH ZNANOSTI"]
[{"v":29,"d":"29."},"HRVATSKA POŠTA D.D.","87311810356","POŠTANSKA ULICA 9, VELIKA GORICA",{"v":335.4,"d":"335.40"},"EUR","2025/12","3231","Usluge telefona, interneta, pošte i prijevoza","FAKULTET PROMETNIH ZNANOSTI"]
[{"v":30,"d":"30."},"ROSIP D.O.O.","89811416156","DR. MILANA ROJCA 24, Zagreb",{"v":137.5,"d":"137.50"},"EUR","2025/12","3213","Stručno usavršavanje zaposlenika","FAKULTET PROMETNIH ZNANOSTI"]
[{"v":31,"d":"31."},"ZAGREBAČKA BANKA D.D.","92963223473","TRG BANA JELAČIĆA10, ZAGREB",929.39,"EUR","2025/12","3431","Bankarske usluge i usluge platnog prometa","FAKULTET PROMETNIH ZNANOSTI"]
[{"v":32,"d":"32."},"HRVATSKO DRUŠTVO ZA CESTE I ŽELJEZNICE VIA VITA","96723292226","VONČININA 3, ZAGREB,, Zagreb",{"v":550,"d":"550.00"},"EUR","2025/12","3213","Stručno usavršavanje zaposlenika","FAKULTET PROMETNIH ZNANOSTI"]
[{"v":33,"d":"33."},"ISTYLE","98828194905","JANKOMIR, 33, Zagreb",{"v":2096.92,"d":"2,096.92"},"EUR","2025/12","4222","Komunikacijska oprema","FAKULTET PROMETNIH ZNANOSTI"]
[{"v":34,"d":"34."},"REFUNDACIJA ZAPOSLENICI","n.p.","n.p.",{"v":132.7,"d":"132.70"},"EUR","2025/12","3294","Članarine i norme","FAKULTET PROMETNIH ZNANOSTI"]
[{"v":35,"d":"35."},"CLOUDFLARE,INC","n.p.","101 TOWNSEND STREET, SAN FRANCISCO,CALIFORNIA 94107",217.01,"EUR","2025/12","3221","Uredski materijal i ostali materijalni rashodi","FAKULTET PROMETNIH ZNANOSTI"]
[{"v":36,"d":"36."},"ENVATOELEMENTS","n.p.","PO BOX 16122 COLLINS STREET WEST, MELBOURNE",{"v":393,"d":"393.00"},"EUR","2025/12","3235","Zakupnine i najamnine","FAKULTET PROMETNIH ZNANOSTI"]
[{"v":37,"d":"37."},"FOREFLIGHT LLC","n.p.","2323 S. Shepherd Dr. Suite 912, HOUSTON, TEXAS",{"v":7900.6,"d":"7,900.60"},"EUR","2025/12","3235","Zakupnine i najamnine","FAKULTET PROMETNIH ZNANOSTI"]
[{"v":38,"d":"38."},"GOOGLE COMMERCE LIMITED","n.p.","GORDON HOUSE BARROW STREET, DUBLIN 4",3.49,"EUR","2025/12","3221","Uredski materijal i ostali materijalni rashodi","FAKULTET PROMETNIH ZNANOSTI"]
[{"v":39,"d":"39."},"KLM ROYAL DUTCH AIRLINES","n.p.","1117 SCHIPHOL AIRPORT",527.75,"EUR","2025/12","3211","Službena putovanja","FAKULTET PROMETNIH ZNANOSTI"]
[{"v":40,"d":"40."},"LINKEDIN LINKEDIN IRELAND UNLIMITED COMPANY","n.p.","GARDEN HOUS,WILTON PLAZA,DUBLIN 2, DUBLIN",{"v":180,"d":"180.00"},"EUR","2025/12","3221","Uredski materijal i ostali materijalni rashodi","FAKULTET PROMETNIH ZNANOSTI"]
[{"v":41,"d":"41."},"MAILE HOUSE B.V.","n.p.","MALIESTRAAT 2, SL UTRECHT 3581",601.74,"EUR","2025/12","3211","Službena putovanja","FAKULTET PROMETNIH ZNANOSTI"]
[{"v":42,"d":"42."},"OPENAL IRELAND LIMITED","n.p.","117-126 SHERIFF STREET UPPER, DUBLIN",{"v":18.4,"d":"18.40"},"EUR","2025/12","3235","Zakupnine i najamnine","FAKULTET PROMETNIH ZNANOSTI"]
[{"v":43,"d":"43."},"VIDAJ SERVIS OBRT ZA USLUGE I TRGOVINU","GDPR","GDPR",{"v":67.5,"d":"67.50"},"EUR","2025/12","3224","Materijal i dijelovi za tekuće i investicijsko održavanje","FAKULTET PROMETNIH ZNANOSTI"]
[{"v":44,"d":"44."},"Z-EL D.O.O.","11374156664","INDUSTRIJSKA CESTA 28,, Zagreb",{"v":12,"d":"12.00"},"EUR","2025/12","3221","Uredski materijal i ostali materijalni rashodi","FAKULTET PROMETNIH ZNANOSTI"]
[{"v":45,"d":"45."},"POMAK PLUS D.O.O.","59254278286","MLAKA 18A, ZAGREB",20.91,"EUR","2025/12","3231","Usluge telefona, interneta, pošte i prijevoza","FAKULTET PROMETNIH ZNANOSTI"]
[{"v":46,"d":"46."},"EKUPI D.O.O","67567085531","BUZINSKI PRILAZI 10, ZAGREB",263.13,"EUR","2025/12","3221","Uredski materijal i ostali materijalni rashodi","FAKULTET PROMETNIH ZNANOSTI"]
[{"v":47,"d":"47."},"UGOST.OBRT DELFIN","69594909987","HARAMBAŠIĆEVA 33,, Zagreb",{"v":17.6,"d":"17.60"},"EUR","2025/12","3293","Reprezentacija","FAKULTET PROMETNIH ZNANOSTI"]
[{"v":48,"d":"48."},"HOTEL BASTION","71034205256","BEDEMI ZADARSKIH POBUNA 13, ZADAR",{"v":109.5,"d":"109.50"},"EUR","2025/12","3211","Službena putovanja","FAKULTET PROMETNIH ZNANOSTI"]
[{"v":49,"d":"49."},"BAUHAUS","71642207963","ŽITNJAK BB, VELIMIRA ŠKORPIKA 27, Zagreb",44.95,"EUR","2025/12","3221","Uredski materijal i ostali materijalni rashodi","FAKULTET PROMETNIH ZNANOSTI"]
[{"v":50,"d":"50."},"BAUHAUS","71642207963","ŽITNJAK BB, VELIMIRA ŠKORPIKA 27, Zagreb",294.78,"EUR","2025/12","3224","Materijal i dijelovi za tekuće i investicijsko održavanje","FAKULTET PROMETNIH ZNANOSTI"]
[{"v":51,"d":"51."},"MARAS D.O.O.","76656714181","VRBIK 8A,, Zagreb",{"v":417.6,"d":"417.60"},"EUR","2025/12","3221","Uredski materijal i ostali materijalni rashodi","FAKULTET PROMETNIH ZNANOSTI"]
[{"v":52,"d":"52."},"ŠUMO OPSKRBA D.O.O.","85775843111","DONJE SVETICE 12,, Zagreb",{"v":31.8,"d":"31.80"},"EUR","2025/12","3224","Materijal i dijelovi za tekuće i investicijsko održavanje","FAKULTET PROMETNIH ZNANOSTI"]
[{"v":53,"d":"53."},"ISPIS D.O.O.","86023224138","MEĐIMURSKA 21,, Zagreb",37.53,"EUR","2025/12","3239","Ostale usluge","FAKULTET PROMETNIH ZNANOSTI"]
[{"v":54,"d":"54."},null,"n.p.","n.p.",{"v":11123.7,"d":"11,123.70"},"EUR","2025/12","3121","Ostali rashodi za zaposlene","FAKULTET PROMETNIH ZNANOSTI"]
[{"v":55,"d":"55."},"REFUNDACIJA ZAPOSLENICI","n.p.","n.p.",{"v":1942.32,"d":"1,942.32"},"EUR","2025/12","3293","Reprezentacija","FAKULTET PROMETNIH ZNANOSTI"]
[{"v":56,"d":"56."},"IRA COMMERCE D.O.O. CVJEĆARNICA IRA","04881568165","RUDOLFA KOLAKA 5, ZAGREB",38.22,"EUR","2025/12","3221","Uredski materijal i ostali materijalni rashodi","FAKULTET PROMETNIH ZNANOSTI"]
[{"v":57,"d":"57."},"ANKER","21016032890","BRUNE BUŠIĆA 5,, Zagreb",811.97,"EUR","2025/12","3224","Materijal i dijelovi za tekuće i investicijsko održavanje","FAKULTET PROMETNIH ZNANOSTI"]
[{"v":58,"d":"58."},"BISTRO FONTANA","25341199934","MIŠIĆKA 14, POPOVAČA",{"v":39.5,"d":"39.50"},"EUR","2025/12","3293","Reprezentacija","FAKULTET PROMETNIH ZNANOSTI"]
[{"v":59,"d":"59."},"CAFFE BAR U PROLAZU SAM.-KOL. D.O.O.","35829517383","TRG KRALJA TOMISLAVA 6, SAMOBOR",{"v":24.8,"d":"24.80"},"EUR","2025/12","3293","Reprezentacija","FAKULTET PROMETNIH ZNANOSTI"]
[{"v":60,"d":"60."},"KONOBA MAMMA MIA","41676880702","ULICA KNEZA NOVAKA KRBAVSKOG 9, ZADAR",{"v":129.5,"d":"129.50"},"EUR","2025/12","3293","Reprezentacija","FAKULTET PROMETNIH ZNANOSTI"]
[{"v":61,"d":"61."},"KRČMA GABREKU D.O.O.","45426329934","STAROGRADSKA 46, SAMOBOR",{"v":78,"d":"78.00"},"EUR","2025/12","3293","Reprezentacija","FAKULTET PROMETNIH ZNANOSTI"]
[{"v":62,"d":"62."},"KAUFLAND HRVATSKA K.D.","47432874968","DONJE SVETICE 14,, Zagreb",11.98,"EUR","2025/12","3221","Uredski materijal i ostali materijalni rashodi","FAKULTET PROMETNIH ZNANOSTI"]
[{"v":63,"d":"63."},"CVJEČARSKI OBRT VERA","48094283669","KVATERNIKOV TRG,, Zagreb",{"v":80,"d":"80.00"},"EUR","2025/12","3299","Ostali nespomenuti rashodi poslovanja","FAKULTET PROMETNIH ZNANOSTI"]
[{"$f":"ROW(A64)","v":{"v":64,"d":"64."}},"AGENCIJA ZA KOMERCIJALNU DJELATNOST","58843087891","SAVSKA CESTA 31,, Zagreb",{"v":257.4,"d":"257.40"},"EUR","2025/12","3239","Ostale usluge","FAKULTET PROMETNIH ZNANOSTI"]
[{"v":65,"d":"65."},"GARDIEN D.O.O. RESTORAN TAJER","61449176051","ZELENGAJ 18, ZAGREB",{"v":2035.15,"d":"2,035.15"},"EUR","2025/12","3293","Reprezentacija","FAKULTET PROMETNIH ZNANOSTI"]
[{"v":66,"d":"66."},"GEOGIS D.O.O.","63046817751","II MAKSIMIRSKO NASELJE 3,, Zagreb",43.13,"EUR","2025/12","3235","Zakupnine i najamnine","FAKULTET PROMETNIH ZNANOSTI"]
[{"v":67,"d":"67."},"USUŽNI OBRT CVJEČARNICA DORA","GDPR","GDPR",{"v":70,"d":"70.00"},"EUR","2025/12","3299","Ostali nespomenuti rashodi poslovanja","FAKULTET PROMETNIH ZNANOSTI"]
[{"v":68,"d":"68."},"INSTAR CENTER D.O.O.","64308723629","ANDRIJE KAČIĆA MIOŠIĆA 22C, VELIKA GORICA",74.87,"EUR","2025/12","3221","Uredski materijal i ostali materijalni rashodi","FAKULTET PROMETNIH ZNANOSTI"]
[{"v":69,"d":"69."},"BAUHAUS","71642207963","ŽITNJAK BB, VELIMIRA ŠKORPIKA 27, Zagreb",42.45,"EUR","2025/12","3299","Ostali nespomenuti rashodi poslovanja","FAKULTET PROMETNIH ZNANOSTI"]
[{"v":70,"d":"70."},"COFFEE DOO-NESPRESSO ARENA CENTAR LOKAL C15","72131920432","ZADARSKA ULICA 77, ZAGREB",{"v":42.5,"d":"42.50"},"EUR","2025/12","3293","Reprezentacija","FAKULTET PROMETNIH ZNANOSTI"]
[{"v":71,"d":"71."},"EUROADRIA D.O.O. CATERING KVATRIĆ","84526969754","MAKSIMIRSKA 9,, Zagreb",{"v":7928.25,"d":"7,928.25"},"EUR","2025/12","3293","Reprezentacija","FAKULTET PROMETNIH ZNANOSTI"]
[{"v":72,"d":"72."},"Živa voda d.o.o.","86255713939","Karlovačka cesta 92 10020, Zagreb",632.82,"EUR","2025/12","3234","Komunalne usluge","FAKULTET PROMETNIH ZNANOSTI"]
[{"v":73,"d":"73."},"VRUTAK D.O.O.","95092888930","VODOVODNA 20 A,, Zagreb",{"v":1508.17,"d":"1,508.17"},"EUR","2025/12","3293","Reprezentacija","FAKULTET PROMETNIH ZNANOSTI"]
[{"v":74,"d":"74."},"SMIT-COMMERCE D.O.O.","95243482140","GORNJOSTUPNIČKA 9B,, Gornji Stupnik",23.08,"EUR","2025/12","3224","Materijal i dijelovi za tekuće i investicijsko održavanje","FAKULTET PROMETNIH ZNANOSTI"]
[{"v":75,"d":"75."},"MCDONALDS","97492131626","RUDEŠKA CESTA 87A, ZAGREB",{"v":33,"d":"33.00"},"EUR","2025/12","3293","Reprezentacija","FAKULTET PROMETNIH ZNANOSTI"]
[{"v":76,"d":"76."},"ISTYLE","98828194905","JANKOMIR, 33, Zagreb",35.99,"EUR","2025/12","3221","Uredski materijal i ostali materijalni rashodi","FAKULTET PROMETNIH ZNANOSTI"]
[{"v":77,"d":"77."},"FRANKO\"S PIZZA & BAR","99001057300","BRANIMIROVA ULICA 71A, ZAGREB",{"v":115.6,"d":"115.60"},"EUR","2025/12","3293","Reprezentacija","FAKULTET PROMETNIH ZNANOSTI"]
[{"v":78,"d":"78."},"SLASTIČARNICA VINCEK D.O.O.","99500510088","ZVONIMIROVA 7,, Zagreb",{"v":77.3,"d":"77.30"},"EUR","2025/12","3293","Reprezentacija","FAKULTET PROMETNIH ZNANOSTI"]
[{"v":79,"d":"79."},"STUDENTSKI CENTAR ZGB","22597784145","SAVSKA CESTA 25,, Zagreb",{"v":2905.15,"d":"2,905.15"},"EUR","2025/12","3293","Reprezentacija","FAKULTET PROMETNIH ZNANOSTI"]
[{"v":80,"d":"80."},"INA INDUSTRIJA NAFTE D.D.","27759560625","AVENIJA V.HOLJEVCA 10,, Zagreb",927.15,"EUR","2025/12","3223","Energija","FAKULTET PROMETNIH ZNANOSTI"]
[{"v":81,"d":"81."},"LINKS D.O.O.","32614011568","DANKOVEČKA 5,, Zagreb",175.43,"EUR","2025/12","3221","Uredski materijal i ostali materijalni rashodi","FAKULTET PROMETNIH ZNANOSTI"]
[{"v":82,"d":"82."},"INSTITUT PROMETA I VEZA","39779737813","KUŠLANOVA 2,, Zagreb",{"v":158,"d":"158.00"},"EUR","2025/12","3234","Komunalne usluge","FAKULTET PROMETNIH ZNANOSTI"]
[{"v":83,"d":"83."},"MANOKA J.D.O.O.","57656244957","DANKOVEČKA ULICA 3, ZAGREB",{"v":3.9,"d":"3.90"},"EUR","2025/12","3231","Usluge telefona, interneta, pošte i prijevoza","FAKULTET PROMETNIH ZNANOSTI"]
[{"v":84,"d":"84."},"AUTO GAŠPARIĆ D.O.O.","69565927095","VELIKOGORIČKA 19A,, Vukovina",{"v":2692.7,"d":"2,692.70"},"EUR","2025/12","3235","Zakupnine i najamnine","FAKULTET PROMETNIH ZNANOSTI"]
[{"v":85,"d":"85."},"STUDENTSKI CENTAR OSIJEK","90017453174","ISTARSKA 5,, Osijek",{"v":1888,"d":"1,888.00"},"EUR","2025/12","3237","Intelektualne i osobne usluge","FAKULTET PROMETNIH ZNANOSTI"]
[{"v":86,"d":"86."},"ELEMENTOR EU LTD","n.p.","4 ASIAS STREET, LIMASSOL 3050",51.25,"EUR","2025/12","3221","Uredski materijal i ostali materijalni rashodi","FAKULTET PROMETNIH ZNANOSTI"]
[{"v":87,"d":"87."},"WUERZBURGER INSTITUT FÜR VERKEHRSWISSENSCHAFTEN GMBH",null,"ROBERT-BOSCH-STRAßE 4, VEITSHOECHHEIM",{"v":106088,"d":"106,088.00"},"EUR","2025/12","4225","Instrumenti i uređaji","FAKULTET PROMETNIH ZNANOSTI"]
[{"v":88,"d":"88."},"KONOBA DIDOV SAN","45431278864","Mletačka 11, ZAGREB",{"v":385.9,"d":"385.90"},"EUR","2025/12","3293","Reprezentacija","FAKULTET PROMETNIH ZNANOSTI"]
[{"v":89,"d":"89."},"HEP OPSKRBA D.O.O. DISTR.PODR.ELEKTRA","63073332379","ULICA GRADA VUKOVARA 37,, Zagreb",{"v":2057.56,"d":"2,057.56"},"EUR","2025/12","3223","Energija","FAKULTET PROMETNIH ZNANOSTI"]
[{"v":90,"d":"90."},"STEMWISE D.O.O.","75697521276","GRGE TUŠKANA 37, ZAGREB",{"v":787.5,"d":"787.50"},"EUR","2025/12","3237","Intelektualne i osobne usluge","FAKULTET PROMETNIH ZNANOSTI"]
[{"v":91,"d":"91."},"CENTAR ZA PROMET I LOGISTIKU D.O.O.","99489406751","BORONGAJSKA CESTA 83 A,, Zagreb",{"v":15802.5,"d":"15,802.50"},"EUR","2025/12","3237","Intelektualne i osobne usluge","FAKULTET PROMETNIH ZNANOSTI"]
[{"v":92,"d":"92."},"REFUNDACIJA ZAPOSLENICI","n.p.","n.p.",{"v":300,"d":"300.00"},"EUR","2025/12","3299","Ostali nespomenuti rashodi poslovanja","FAKULTET PROMETNIH ZNANOSTI"]
[{"v":93,"d":"93."},"ANY LOGIC TECHNOLOGY CENTER UNIPESSOAL LDA Praça de Alvalade, no 6, 8o Esq",null,"PRACA DE ALVALADE N6 8 ESQ, LISABON",{"v":150,"d":"150.00"},"EUR","2025/12","3213","Stručno usavršavanje zaposlenika","FAKULTET PROMETNIH ZNANOSTI"]
[{"v":94,"d":"94."},"MDPI","n.p.","ST.ALBAN-ANLAGE 66,, BASEL",{"v":2273.51,"d":"2,273.51"},"EUR","2025/12","3213","Stručno usavršavanje zaposlenika","FAKULTET PROMETNIH ZNANOSTI"]
[{"v":95,"d":"95."},"SURVEYMONKEY EUROPE UC","n.p.","5 SCHOOL HOUSE LANE EAST, DUBLIN 2 D02 N279",{"v":950.4,"d":"950.40"},"EUR","2025/12","3221","Uredski materijal i ostali materijalni rashodi","FAKULTET PROMETNIH ZNANOSTI"]
[{"v":96,"d":"96."},"TAYLOR & FRANCIS GROUP","n.p.","5 HOWICJ PLACE, LONDON",{"v":890,"d":"890.00"},"EUR","2025/12","3213","Stručno usavršavanje zaposlenika","FAKULTET PROMETNIH ZNANOSTI"]
[{"v":97,"d":"97."},"LA ŠTRUK","14578226499","ULICA KARLA METIKOŠA 7, ZAGREB",{"v":38,"d":"38.00"},"EUR","2025/12","3293","Reprezentacija","FAKULTET PROMETNIH ZNANOSTI"]
[{"v":98,"d":"98."},"KELAVA I SINOVI D.O.O.","39247891091","GLOGOVEČKA 5/D,, Zagreb",{"v":100,"d":"100.00"},"EUR","2025/12","3239","Ostale usluge","FAKULTET PROMETNIH ZNANOSTI"]
[{"v":99,"d":"99."},"STUDENTSKI CENTAR PULA","63288148995","ULICA SV.MIHOVILA 3,, Pula",322.66,"EUR","2025/12","3237","Intelektualne i osobne usluge","FAKULTET PROMETNIH ZNANOSTI"]
[{"v":100,"d":"100."},"BIR PIVNICA &PIVOVARA INKORA S D.O.O.","70612365410","HARAMBAŠIĆEVA 31, ZAGREB",{"v":508.3,"d":"508.30"},"EUR","2025/12","3293","Reprezentacija","FAKULTET PROMETNIH ZNANOSTI"]
[{"v":101,"d":"101."},"CAFFE BAR FANTASY","92620996593","DRAČEVAC 3D, SPLIT",{"v":41.3,"d":"41.30"},"EUR","2025/12","3293","Reprezentacija","FAKULTET PROMETNIH ZNANOSTI"]
[{"v":102,"d":"102."},"REFUNDACIJA ZAPOSLENICI","n.p.","n.p.",{"v":980,"d":"980.00"},"EUR","2025/12","3295","Pristojbe i naknade","FAKULTET PROMETNIH ZNANOSTI"]
[{"v":103,"d":"103."},"NTS MASHINOSTROENE INDUSTRY-4.0","n.p.","108 G.S. RAKOVSKI STR., SOFIA",{"v":180,"d":"180.00"},"EUR","2025/12","3213","Stručno usavršavanje zaposlenika","FAKULTET PROMETNIH ZNANOSTI"]
[{"v":104,"d":"104."},"SILESIAN UNIVERSITY OF TECHNOLOGY","n.p.","AKADEMICKA 2A,, Gliwice",{"v":400,"d":"400.00"},"EUR","2025/12","3213","Stručno usavršavanje zaposlenika","FAKULTET PROMETNIH ZNANOSTI"]
[{"v":105,"d":"105."},"SUZANA OGRAJENŠEK, S.P. LAKEVIEW APARTMENTS BLED","n.p.","n.p.",{"v":1715.73,"d":"1,715.73"},"EUR","2025/12","3211","Službena putovanja","FAKULTET PROMETNIH ZNANOSTI"]
[{"v":106,"d":"106."},"Via Tech, obrt za usluge, vl. Anđelo Marunica","GDPR","GDPR",{"v":688.1,"d":"688.10"},"EUR","2025/12","3237","Intelektualne i osobne usluge","FAKULTET PROMETNIH ZNANOSTI"]
[{"v":107,"d":"107."},"ZRIM-KO D.O.O.","n.p.","CESTA DVEH CESARJEV 176, LJUBLJANA",{"v":612,"d":"612.00"},"EUR","2025/12","4221","Uredska oprema i namještaj","FAKULTET PROMETNIH ZNANOSTI"]
[{"v":108,"d":"108."},"SIGNAL-M","13268276185","A.BAUERA 13,, Zagreb",{"v":20,"d":"20.00"},"EUR","2025/12","3239","Ostale usluge","FAKULTET PROMETNIH ZNANOSTI"]
[{"v":109,"d":"109."},"TICKS ONE D.O.O.","18451504746","POŽARINJE 53, ZAGREB",134.13,"EUR","2025/12","3233","Usluge promidžbe i informiranja","FAKULTET PROMETNIH ZNANOSTI"]
[{"v":110,"d":"110."},"PRESIDENT GRUPA D.O.O. HOTEL PRESIDENT SOLIN","33301430925","VARŠAVSKA 13, ZAGREB",{"v":166,"d":"166.00"},"EUR","2025/12","3211","Službena putovanja","FAKULTET PROMETNIH ZNANOSTI"]
[{"v":111,"d":"111."},"PRESIDENT GRUPA D.O.O. HOTEL PRESIDENT SOLIN","33301430925","VARŠAVSKA 13, ZAGREB",{"v":498,"d":"498.00"},"EUR","2025/12","3241","Naknade troškova osobama izvan radnog odnosa","FAKULTET PROMETNIH ZNANOSTI"]
[{"v":112,"d":"112."},"JULIUS MEINL BONFANTI D.O.O.","39546130894","SAVSKA ULICA 55, SAMOBORSKI OTOK, SAMOBOR",209.84,"EUR","2025/12","3293","Reprezentacija","FAKULTET PROMETNIH ZNANOSTI"]
[{"v":113,"d":"113."},"ANDREJ SMODLAKA STALNI SUDSKI TUMAČ ZA ENG.JEZIK","GDPR","GDPR",{"v":240,"d":"240.00"},"EUR","2025/12","3237","Intelektualne i osobne usluge","FAKULTET PROMETNIH ZNANOSTI"]
[{"v":114,"d":"114."},"PRINTSHOP D.O.O.","53605605523","GRGURA BUDISLAVIĆA 135, ZADAR",187.25,"EUR","2025/12","3299","Ostali nespomenuti rashodi poslovanja","FAKULTET PROMETNIH ZNANOSTI"]
[{"v":115,"d":"115."},"2MT D.O.O.","57813607002","ZAGREBAČKA AVENIJA 108, ZAGREB",{"v":1350,"d":"1,350.00"},"EUR","2025/12","3233","Usluge promidžbe i informiranja","FAKULTET PROMETNIH ZNANOSTI"]
[{"v":116,"d":"116."},"HRVATSKA ZAJEDNICA RAČ.I FIN.DJELATNIKA","75508100288","JAKOVA GOTOVCA 1/II,, Zagreb",{"v":700,"d":"700.00"},"EUR","2025/12","3213","Stručno usavršavanje zaposlenika","FAKULTET PROMETNIH ZNANOSTI"]
[{"$f":"ROW(A118)","v":{"v":118,"d":"118."}},null,"n.p.","n.p.",{"$f":"591495.51+41834.27+8027.42","v":{"v":641357.2000000001,"d":"641,357.20"}},"EUR","2025/12","3111","Plaće za redovan rad","FAKULTET PROMETNIH ZNANOSTI"]
[{"$f":"ROW(A119)","v":{"v":119,"d":"119."}},null,"n.p.","n.p.",167.09,"EUR","2025/12","3114","Plaće za posebne uvjete rada","FAKULTET PROMETNIH ZNANOSTI"]
[{"$f":"ROW(A120)","v":{"v":120,"d":"120."}},null,"n.p.","n.p.",{"v":2174.09,"d":"2,174.09"},"EUR","2025/12","3131","Doprinosi za mirovinsko osiguranje za staž s povećanim trajanjem","FAKULTET PROMETNIH ZNANOSTI"]
[{"$f":"ROW(A122)","v":{"v":122,"d":"122."}},null,"n.p.","n.p.",{"$f":"96095.56+6605.18","v":{"v":102700.73999999999,"d":"102,700.74"}},"EUR","2025/12","3132","Doprinosi za obvezno zdravstveno osiguranje","FAKULTET PROMETNIH ZNANOSTI"]
[{"$f":"ROW(A123)","v":{"v":123,"d":"123."}},null,"n.p.","n.p.",{"$f":"10997.28-38.49+1212.36","v":{"v":12171.150000000001,"d":"12,171.15"}},"EUR","2025/12","3212","Naknade za prijevoz, za rad na terenu i odvojeni život","FAKULTET PROMETNIH ZNANOSTI"]
[{"$f":"ROW(A124)","v":{"v":124,"d":"124."}},"DOM ZDRAVLJA ZAGREB-CENTAR","00053084642","RUNJANINOVA 4,, Zagreb",{"v":1269,"d":"1,269.00"},"EUR","2025/12","3236","Zdravstvene i veterinarske usluge","FAKULTET PROMETNIH ZNANOSTI"]
[{"$f":"ROW(A125)","v":{"v":125,"d":"125."}},"IMPULS SAVJETOVANJE D.O.O.","30259958677","ULICA GRGE TUŠKANA 37, ZAGREB",{"v":5625,"d":"5,625.00"},"EUR","2025/12","3237","Intelektualne i osobne usluge","FAKULTET PROMETNIH ZNANOSTI"]
[{"$f":"ROW(#REF!)","v":{"$error":"#REF!"}},"INSTAR CENTER D.O.O.","64308723629","ANDRIJE KAČIĆA MIOŠIĆA 22C, VELIKA GORICA",392.74,"EUR","2025/12","4222","Komunikacijska oprema","FAKULTET PROMETNIH ZNANOSTI"]
[{"$f":"ROW(A126)","v":{"v":126,"d":"126."}},"ZAVOD ZA ISPITIVANJE KVALITETE D.O.O.","74121470605","GAJEVA 17/III,, Zagreb",{"v":887.5,"d":"887.50"},"EUR","2025/12","3232","Usluge tekućeg i investicijskog održavanja","FAKULTET PROMETNIH ZNANOSTI"]
[{"$f":"ROW(#REF!)","v":{"$error":"#REF!"}},"EXELLISO D.O.O.","94275387625","SVETICE 24, ZAGREB",{"v":1379.15,"d":"1,379.15"},"EUR","2025/12","3221","Uredski materijal i ostali materijalni rashodi","FAKULTET PROMETNIH ZNANOSTI"]
[{"$f":"ROW(A128)","v":{"v":128,"d":"128."}},"REFUNDACIJA ZAPOSLENICI","n.p.","n.p.",{"v":5.3,"d":"5.30"},"EUR","2025/12","3241","Naknade troškova osobama izvan radnog odnosa","FAKULTET PROMETNIH ZNANOSTI"]
[{"$f":"ROW(A129)","v":{"v":129,"d":"129."}},"REMARKABLE OPERATIONS B.V.","n.p.","ZUIDPLEIN 116, AMSTERDAM",{"v":115.2,"d":"115.20"},"EUR","2025/12","3221","Uredski materijal i ostali materijalni rashodi","FAKULTET PROMETNIH ZNANOSTI"]
[{"$f":"ROW(A130)","v":{"v":130,"d":"130."}},"TRIP.COM TRAVEL SINGAPORE","n.p.","SINGAPORE",{"v":1021.5,"d":"1,021.50"},"EUR","2025/12","3211","Službena putovanja","FAKULTET PROMETNIH ZNANOSTI"]
[{"$f":"ROW(A131)","v":{"v":131,"d":"131."}},"KONOBA RAFAELO","24497558419","PUT DIKLA 78, ZADAR",{"v":122.6,"d":"122.60"},"EUR","2025/12","3293","Reprezentacija","FAKULTET PROMETNIH ZNANOSTI"]
[{"$f":"ROW(A132)","v":{"v":132,"d":"132."}},"KINEZIOLOŠKI FAKULTET SVEUČILIŠTA U ZAGREBU","25329931628","Horvaćanski zavoj 15, ZAGREB",{"v":540,"d":"540.00"},"EUR","2025/12","3235","Zakupnine i najamnine","FAKULTET PROMETNIH ZNANOSTI"]
[{"$f":"ROW(#REF!)","v":{"$error":"#REF!"}},"KONICA MINOLTA POSLOVNA RJEŠENJA D.O.O.","31697259786","HORVATOVA 82,, Zagreb",{"v":1293.88,"d":"1,293.88"},"EUR","2025/12","3235","Zakupnine i najamnine","FAKULTET PROMETNIH ZNANOSTI"]
[{"$f":"ROW(A133)","v":{"v":133,"d":"133."}},"CHEESE BAR","50201013707","ULICA AUGUSTA CESARCA 2, ZAGREB",{"v":86.5,"d":"86.50"},"EUR","2025/12","3293","Reprezentacija","FAKULTET PROMETNIH ZNANOSTI"]
[{"v":134,"d":"134."},"PRODAVAONICA HOME BY CISS","51650168303","JURIŠIĆEVA UL.18, ZAGREB",51.12,"EUR","2025/12","3221","Uredski materijal i ostali materijalni rashodi","FAKULTET PROMETNIH ZNANOSTI"]
[{"v":135,"d":"135."},"DINZOL TRADE J.D.O.O.","78544355371","SAVSKA CESTA 41, ZAGREB",{"v":5.9,"d":"5.90"},"EUR","2025/12","3231","Usluge telefona, interneta, pošte i prijevoza","FAKULTET PROMETNIH ZNANOSTI"]
[{"v":136,"d":"136."},"OBRT ZA MORSKI RIBOLOV \"HOBOS\"","GDPR","GDPR",{"v":108,"d":"108.00"},"EUR","2025/12","3293","Reprezentacija","FAKULTET PROMETNIH ZNANOSTI"]
[{"v":137,"d":"137."},"AKADEMIJA TEH.ZNANOSTI HRVATSKE","89465386965","KAČIĆEVA 28,, Zagreb",{"v":663.6,"d":"663.60"},"EUR","2025/12","3294","Članarine i norme","FAKULTET PROMETNIH ZNANOSTI"]
[{"v":138,"d":"138."},"GRADSKO STAMBENO KOM.GOSP. GSKG","03744272526","SAVSKA CESTA 1,, Zagreb",628.65,"EUR","2025/12","3234","Komunalne usluge","FAKULTET PROMETNIH ZNANOSTI"]
[{"v":139,"d":"139."},"ALFA SECURITY & DEMINING D.O.O.","15417598684","Grdanjci 1 /1 Grdanjci, Grdanjci",124.43,"EUR","2025/12","3239","Ostale usluge","FAKULTET PROMETNIH ZNANOSTI"]
[{"v":140,"d":"140."},"ULIX D.O.O.","26561427801","MIRAMARSKA 26,, Zagreb",229.73,"EUR","2025/12","3211","Službena putovanja","FAKULTET PROMETNIH ZNANOSTI"]
[{"v":141,"d":"141."},"HRVATSKO AKUSTIČKO DRUŠTVO","48072030923","UNSKA 3,, ZAGREB",{"v":60,"d":"60.00"},"EUR","2025/12","3294","Članarine i norme","FAKULTET PROMETNIH ZNANOSTI"]
[{"v":142,"d":"142."},"HRVATSKO ERGONOMIJSKO DRUŠTVO","56165495302","IVANA LUČIĆA 5,, Zagreb",{"v":60,"d":"60.00"},"EUR","2025/12","3294","Članarine i norme","FAKULTET PROMETNIH ZNANOSTI"]
[{"v":143,"d":"143."},"NODEFUSION D.O.O.","60378406301","PODBREŽJE X. 9 A, Zagreb",995.43,"EUR","2025/12","3238","Računalne usluge","FAKULTET PROMETNIH ZNANOSTI"]
[{"v":144,"d":"144."},"SINONIM D.O.O.","60695956664","PRINCA EUGENA SAVOJSKOG 51,, Osijek",{"v":1642.5,"d":"1,642.50"},"EUR","2025/12","3237","Intelektualne i osobne usluge","FAKULTET PROMETNIH ZNANOSTI"]
[{"v":145,"d":"145."},"GRAD ZAGREB - GRADSKI URED ZA OBNOVU, IZGRADNJU, PROSTORNO UREĐENJE, GRADITELJSTVO I KOMUNALNE POSLOVE","61817894937","TRG STJEPANA RADIĆA 1,, Zagreb",409.11,"EUR","2025/12","3234","Komunalne usluge","FAKULTET PROMETNIH ZNANOSTI"]
[{"v":146,"d":"146."},"LEXPERA D.O.O.","79506290597","ZAGREB,, TUŠKANOVA 37",121.88,"EUR","2025/12","3221","Uredski materijal i ostali materijalni rashodi","FAKULTET PROMETNIH ZNANOSTI"]
[{"v":147,"d":"147."},"BABIĆ & BRBOROVIĆ","GDPR","GDPR",{"v":1875,"d":"1,875.00"},"EUR","2025/12","3237","Intelektualne i osobne usluge","FAKULTET PROMETNIH ZNANOSTI"]
[{"v":148,"d":"148."},"VODOVOD ZADAR","89406825003","ŠPIRE BRUSINE 17,, Zadar",11.22,"EUR","2025/12","3234","Komunalne usluge","FAKULTET PROMETNIH ZNANOSTI"]
[{"v":149,"d":"149."},"PLAVA PTICA D.O.O.","39521531180","SISAČKA CESTA 36,, Zagreb",226.25,"EUR","2025/12","3232","Usluge tekućeg i investicijskog održavanja","FAKULTET PROMETNIH ZNANOSTI"]
[{"v":150,"d":"150."},"FLUVIUS D.O.O.","67731157773","ŠTEFANOVEC 78,, Zagreb",911.06,"EUR","2025/12","3293","Reprezentacija","FAKULTET PROMETNIH ZNANOSTI"]
[{"v":151,"d":"151."},"TOKIĆ D.O.O.","74867487620","ULICA 114 BRIGADE VOJSKE  1a, SESVETE",{"v":94,"d":"94.00"},"EUR","2025/12","3224","Materijal i dijelovi za tekuće i investicijsko održavanje","FAKULTET PROMETNIH ZNANOSTI"]
[{"v":152,"d":"152."},"HRAVATSKI TELEKOM d.d.","81793146560","Radnička cesta 21, ZAGREB",559.31,"EUR","2025/12","3231","Usluge telefona, interneta, pošte i prijevoza","FAKULTET PROMETNIH ZNANOSTI"]
[{"$f":"ROW(A155)","v":{"v":155,"d":"155."}},"REFUNDACIJA ZAPOSLENICI","GDPR","GDPR",{"$f":"26080.24+7496.95","v":{"v":33577.19,"d":"33,577.19"}},"EUR","2025/12","3237","Intelektualne i osobne usluge","FAKULTET PROMETNIH ZNANOSTI"]
[{"$f":"ROW(A156)","v":{"v":156,"d":"156."}},"ANA PAVELIĆ TREMAC","GDPR","GDPR",126.91,"EUR","2025/12","3237","Intelektualne i osobne usluge","FAKULTET PROMETNIH ZNANOSTI"]
[{"$f":"ROW(A157)","v":{"v":157,"d":"157."}},"ANĐELKO PLEŠIĆ","GDPR","GDPR",{"v":2986.11,"d":"2,986.11"},"EUR","2025/12","3237","Intelektualne i osobne usluge","FAKULTET PROMETNIH ZNANOSTI"]
[{"$f":"ROW(A158)","v":{"v":158,"d":"158."}},"ANTE BARUN","GDPR","GDPR",131.86,"EUR","2025/12","3237","Intelektualne i osobne usluge","FAKULTET PROMETNIH ZNANOSTI"]
[{"$f":"ROW(#REF!)","v":{"$error":"#REF!"}},"AURORA VALINČIĆ","GDPR","GDPR",130.16,"EUR","2025/12","3237","Intelektualne i osobne usluge","FAKULTET PROMETNIH ZNANOSTI"]
[{"$f":"ROW(#REF!)","v":{"$error":"#REF!"}},"Babić Dario","GDPR","GDPR",{"v":3683.75,"d":"3,683.75"},"EUR","2025/12","3237","Intelektualne i osobne usluge","FAKULTET PROMETNIH ZNANOSTI"]
[{"v":159,"d":"159."},"Babić Darko","GDPR","GDPR",{"v":5262.5,"d":"5,262.50"},"EUR","2025/12","3237","Intelektualne i osobne usluge","FAKULTET PROMETNIH ZNANOSTI"]
[{"v":160,"d":"160."},"BOSILJKA DOLEŽAL","GDPR","GDPR",131.86,"EUR","2025/12","3237","Intelektualne i osobne usluge","FAKULTET PROMETNIH ZNANOSTI"]
[{"v":161,"d":"161."},"BOŽE RADOŠ","GDPR","GDPR",126.91,"EUR","2025/12","3237","Intelektualne i osobne usluge","FAKULTET PROMETNIH ZNANOSTI"]
[{"v":162,"d":"162."},"BRANKO SUK","GDPR","GDPR",{"v":4001.15,"d":"4,001.15"},"EUR","2025/12","3237","Intelektualne i osobne usluge","FAKULTET PROMETNIH ZNANOSTI"]
[{"v":163,"d":"163."},"CVITIĆ IVAN","GDPR","GDPR",{"v":8035.3,"d":"8,035.30"},"EUR","2025/12","3237","Intelektualne i osobne usluge","FAKULTET PROMETNIH ZNANOSTI"]
[{"v":164,"d":"164."},"DAMIR HAS","GDPR","GDPR",126.91,"EUR","2025/12","3237","Intelektualne i osobne usluge","FAKULTET PROMETNIH ZNANOSTI"]
[{"v":165,"d":"165."},"DAVOR CRNOGORAC","GDPR","GDPR",174.15,"EUR","2025/12","3237","Intelektualne i osobne usluge","FAKULTET PROMETNIH ZNANOSTI"]
[{"v":166,"d":"166."},"DIJANA JOLIĆ","GDPR","GDPR",126.91,"EUR","2025/12","3237","Intelektualne i osobne usluge","FAKULTET PROMETNIH ZNANOSTI"]
[{"v":167,"d":"167."},"DRAGAN GLAVAŠ","GDPR","GDPR",242.95,"EUR","2025/12","3237","Intelektualne i osobne usluge","FAKULTET PROMETNIH ZNANOSTI"]
[{"v":168,"d":"168."},"DRAGOSLAV DRAGOJLOVIĆ","GDPR","GDPR",217.15,"EUR","2025/12","3237","Intelektualne i osobne usluge","FAKULTET PROMETNIH ZNANOSTI"]
[{"v":169,"d":"169."},"DRI UPRAVLJANJE INVESTICIJ D.O.O.","n.p.","KONTNIKOVA ULICA 40,, Ljubljana",{"v":28.4,"d":"28.40"},"EUR","2025/12","3235","Zakupnine i najamnine","FAKULTET PROMETNIH ZNANOSTI"]
[{"v":170,"d":"170."},"DUBRAVKO TOMAŠIĆ","GDPR","GDPR",{"v":98.9,"d":"98.90"},"EUR","2025/12","3237","Intelektualne i osobne usluge","FAKULTET PROMETNIH ZNANOSTI"]
[{"v":171,"d":"171."},"DUKIĆ TIN","GDPR","GDPR",{"v":1827.5,"d":"1,827.50"},"EUR","2025/12","3237","Intelektualne i osobne usluge","FAKULTET PROMETNIH ZNANOSTI"]
[{"v":172,"d":"172."},"DUNJA PLAČKO VRŠNAK","GDPR","GDPR",217.15,"EUR","2025/12","3237","Intelektualne i osobne usluge","FAKULTET PROMETNIH ZNANOSTI"]
[{"v":173,"d":"173."},"Fiolić Mario","GDPR","GDPR",{"v":3683.75,"d":"3,683.75"},"EUR","2025/12","3237","Intelektualne i osobne usluge","FAKULTET PROMETNIH ZNANOSTI"]
[{"v":174,"d":"174."},"FRANKOVIĆ LUCIJA","GDPR","GDPR",{"v":2105,"d":"2,105.00"},"EUR","2025/12","3237","Intelektualne i osobne usluge","FAKULTET PROMETNIH ZNANOSTI"]
[{"v":175,"d":"175."},"GORAN VOJKOVIĆ","GDPR","GDPR",629.83,"EUR","2025/12","3237","Intelektualne i osobne usluge","FAKULTET PROMETNIH ZNANOSTI"]
[{"v":176,"d":"176."},"INES DODIG","GDPR","GDPR",126.91,"EUR","2025/12","3237","Intelektualne i osobne usluge","FAKULTET PROMETNIH ZNANOSTI"]
[{"v":177,"d":"177."},"IVANA PROTUĐER","GDPR","GDPR",{"v":653.6,"d":"653.60"},"EUR","2025/12","3237","Intelektualne i osobne usluge","FAKULTET PROMETNIH ZNANOSTI"]
[{"v":178,"d":"178."},"IVICA PIVAR","GDPR","GDPR",{"v":275.2,"d":"275.20"},"EUR","2025/12","3237","Intelektualne i osobne usluge","FAKULTET PROMETNIH ZNANOSTI"]
[{"v":179,"d":"179."},"Jakovljević Marijan","GDPR","GDPR",{"v":6702.96,"d":"6,702.96"},"EUR","2025/12","3237","Intelektualne i osobne usluge","FAKULTET PROMETNIH ZNANOSTI"]
[{"v":180,"d":"180."},"JOVANOVIĆ BOJAN","GDPR","GDPR",{"v":6545.39,"d":"6,545.39"},"EUR","2025/12","3237","Intelektualne i osobne usluge","FAKULTET PROMETNIH ZNANOSTI"]
[{"v":181,"d":"181."},"JURAJ KOSTELAC","GDPR","GDPR",128.51,"EUR","2025/12","3237","Intelektualne i osobne usluge","FAKULTET PROMETNIH ZNANOSTI"]
[{"v":182,"d":"182."},"KOSOVEC BERNARD","GDPR","GDPR",{"v":2105,"d":"2,105.00"},"EUR","2025/12","3237","Intelektualne i osobne usluge","FAKULTET PROMETNIH ZNANOSTI"]
[{"v":183,"d":"183."},"KREŠIMIR STIPANOVIĆ","GDPR","GDPR",131.86,"EUR","2025/12","3237","Intelektualne i osobne usluge","FAKULTET PROMETNIH ZNANOSTI"]
[{"v":184,"d":"184."},"KUDELJAN NIKOLA","GDPR","GDPR",{"v":2354.17,"d":"2,354.17"},"EUR","2025/12","3237","Intelektualne i osobne usluge","FAKULTET PROMETNIH ZNANOSTI"]
[{"v":185,"d":"185."},"LUKA ZOVAK","GDPR","GDPR",{"v":860,"d":"860.00"},"EUR","2025/12","3237","Intelektualne i osobne usluge","FAKULTET PROMETNIH ZNANOSTI"]
[{"$f":"ROW(A186)","v":{"v":186,"d":"186."}},"MARA MOSTARAC","GDPR","GDPR",131.86,"EUR","2025/12","3237","Intelektualne i osobne usluge","FAKULTET PROMETNIH ZNANOSTI"]
[{"v":187,"d":"187."},"MARIJA BOŠNJAK","GDPR","GDPR",129.33,"EUR","2025/12","3237","Intelektualne i osobne usluge","FAKULTET PROMETNIH ZNANOSTI"]
[{"v":188,"d":"188."},"MARKO ŠEVROVIĆ","GDPR","GDPR",{"v":6702.96,"d":"6,702.96"},"EUR","2025/12","3237","Intelektualne i osobne usluge","FAKULTET PROMETNIH ZNANOSTI"]
[{"v":189,"d":"189."},"MARTINA ELEZ","GDPR","GDPR",{"v":855.7,"d":"855.70"},"EUR","2025/12","3237","Intelektualne i osobne usluge","FAKULTET PROMETNIH ZNANOSTI"]
[{"v":190,"d":"190."},"Mataija Mario","GDPR","GDPR",{"v":2279.01,"d":"2,279.01"},"EUR","2025/12","3237","Intelektualne i osobne usluge","FAKULTET PROMETNIH ZNANOSTI"]
[{"v":191,"d":"191."},"MIROSLAV VUJAKLIJA","GDPR","GDPR",126.91,"EUR","2025/12","3237","Intelektualne i osobne usluge","FAKULTET PROMETNIH ZNANOSTI"]
[{"v":192,"d":"192."},"MISLAV STJEPAN ŽEBEC","GDPR","GDPR",{"v":1551.23,"d":"1,551.23"},"EUR","2025/12","3237","Intelektualne i osobne usluge","FAKULTET PROMETNIH ZNANOSTI"]
[{"v":193,"d":"193."},"NENAD TUŠKANAC","GDPR","GDPR",129.51,"EUR","2025/12","3237","Intelektualne i osobne usluge","FAKULTET PROMETNIH ZNANOSTI"]
[{"v":194,"d":"194."},"NEVENKA PERICA","GDPR","GDPR",131.86,"EUR","2025/12","3237","Intelektualne i osobne usluge","FAKULTET PROMETNIH ZNANOSTI"]
[{"v":195,"d":"195."},"NINO KARAMATIĆ","GDPR","GDPR",{"v":348.3,"d":"348.30"},"EUR","2025/12","3237","Intelektualne i osobne usluge","FAKULTET PROMETNIH ZNANOSTI"]
[{"v":196,"d":"196."},"PERAKOVIĆ DRAGAN","GDPR","GDPR",{"v":8035.3,"d":"8,035.30"},"EUR","2025/12","3237","Intelektualne i osobne usluge","FAKULTET PROMETNIH ZNANOSTI"]
[{"v":197,"d":"197."},"PETAR JOLIĆ","GDPR","GDPR",131.86,"EUR","2025/12","3237","Intelektualne i osobne usluge","FAKULTET PROMETNIH ZNANOSTI"]
[{"v":198,"d":"198."},"RUŽIĆ MARKO","GDPR","GDPR",{"v":1578.75,"d":"1,578.75"},"EUR","2025/12","3237","Intelektualne i osobne usluge","FAKULTET PROMETNIH ZNANOSTI"]
[{"v":199,"d":"199."},"SANJA ŽIVKO","GDPR","GDPR",131.86,"EUR","2025/12","3237","Intelektualne i osobne usluge","FAKULTET PROMETNIH ZNANOSTI"]
[{"v":200,"d":"200."},"SELMA MLIVIĆ SRŠAN","GDPR","GDPR",126.91,"EUR","2025/12","3237","Intelektualne i osobne usluge","FAKULTET PROMETNIH ZNANOSTI"]
[{"v":201,"d":"201."},"SINIŠA KOVAČIĆ","GDPR","GDPR",{"v":197.8,"d":"197.80"},"EUR","2025/12","3237","Intelektualne i osobne usluge","FAKULTET PROMETNIH ZNANOSTI"]
[{"v":202,"d":"202."},"Sovina Maja","GDPR","GDPR",{"v":2105,"d":"2,105.00"},"EUR","2025/12","3237","Intelektualne i osobne usluge","FAKULTET PROMETNIH ZNANOSTI"]
[{"v":203,"d":"203."},"SUZANA ĆURIĆ","GDPR","GDPR",131.86,"EUR","2025/12","3237","Intelektualne i osobne usluge","FAKULTET PROMETNIH ZNANOSTI"]
[{"v":204,"d":"204."},"ŠEVROVIĆ SANJA","GDPR","GDPR",{"v":6702.96,"d":"6,702.96"},"EUR","2025/12","3237","Intelektualne i osobne usluge","FAKULTET PROMETNIH ZNANOSTI"]
[{"v":205,"d":"205."},"Šnajder Valentina","GDPR","GDPR",{"v":2105,"d":"2,105.00"},"EUR","2025/12","3237","Intelektualne i osobne usluge","FAKULTET PROMETNIH ZNANOSTI"]
[{"v":206,"d":"206."},"ŠVAJDA MARKO","GDPR","GDPR",{"v":4021.78,"d":"4,021.78"},"EUR","2025/12","3237","Intelektualne i osobne usluge","FAKULTET PROMETNIH ZNANOSTI"]
[{"v":207,"d":"207."},"TOMISLAV KRLJAN","GDPR","GDPR",{"v":2000,"d":"2,000.00"},"EUR","2025/12","3237","Intelektualne i osobne usluge","FAKULTET PROMETNIH ZNANOSTI"]
[{"v":208,"d":"208."},"TOMISLAV PEREGLIN","GDPR","GDPR",{"v":485.9,"d":"485.90"},"EUR","2025/12","3237","Intelektualne i osobne usluge","FAKULTET PROMETNIH ZNANOSTI"]
[{"v":209,"d":"209."},"VERA PRETEGIANI","GDPR","GDPR",130.16,"EUR","2025/12","3237","Intelektualne i osobne usluge","FAKULTET PROMETNIH ZNANOSTI"]
[{"v":210,"d":"210."},"VERTLBERG JURAJ LEONARD","GDPR","GDPR",{"v":4021.78,"d":"4,021.78"},"EUR","2025/12","3237","Intelektualne i osobne usluge","FAKULTET PROMETNIH ZNANOSTI"]
[{"v":211,"d":"211."},"ZLATKO GABRIĆ","GDPR","GDPR",131.86,"EUR","2025/12","3237","Intelektualne i osobne usluge","FAKULTET PROMETNIH ZNANOSTI"]
[{"v":212,"d":"212."},"ZORAN JAKŠIĆ","GDPR","GDPR",531.05,"EUR","2025/12","3237","Intelektualne i osobne usluge","FAKULTET PROMETNIH ZNANOSTI"]
[{"v":213,"d":"213."},"ŽELJKA DEMŠE","GDPR","GDPR",126.91,"EUR","2025/12","3237","Intelektualne i osobne usluge","FAKULTET PROMETNIH ZNANOSTI"]
[{"v":214,"d":"214."},"ŽELJKO OREŠKI","GDPR","GDPR",{"v":232.2,"d":"232.20"},"EUR","2025/12","3237","Intelektualne i osobne usluge","FAKULTET PROMETNIH ZNANOSTI"]
[{"v":215,"d":"215."},"ŽELJKO ŠIMIĆ","GDPR","GDPR",126.91,"EUR","2025/12","3237","Intelektualne i osobne usluge","FAKULTET PROMETNIH ZNANOSTI"]
[{"v":216,"d":"216."},"SGM INFORMATIKA D.O.O.","09168707993","GRGE NOVAKA 22A, Split",{"v":6821.25,"d":"6,821.25"},"EUR","2025/12","4221","Uredska oprema i namještaj","FAKULTET PROMETNIH ZNANOSTI"]
[{"v":217,"d":"217."},"STUDENTSKI CENTAR SPLIT","25975412650","CVITE FISKOVIĆA 3,, Split",{"v":130.4,"d":"130.40"},"EUR","2025/12","3237","Intelektualne i osobne usluge","FAKULTET PROMETNIH ZNANOSTI"]
[{"v":218,"d":"218."},"TRAFIKI, OBRT","49630359624","IVANIĆGRADSKA 59B, ZAGREB",{"v":3900,"d":"3,900.00"},"EUR","2025/12","3237","Intelektualne i osobne usluge","FAKULTET PROMETNIH ZNANOSTI"]
[{"v":219,"d":"219."},"REZO ZVONIMIR","82279099452","KNEZA DOMAGOJA 17,, Dubrovnik",693.38,"EUR","2025/12","3237","Intelektualne i osobne usluge","FAKULTET PROMETNIH ZNANOSTI"]
[{"v":220,"d":"220."},"Monri Payments d.o.o.","82551932122","Ulica grada Vukovara 269F Zagreb, Zagreb",{"v":475,"d":"475.00"},"EUR","2025/12","3295","Pristojbe i naknade","FAKULTET PROMETNIH ZNANOSTI"]
[{"v":221,"d":"221."},"ELSEVIER B.V.","n.p.","RADARWEG 29, AMSTERDAM",{"v":9230,"d":"9,230.00"},"EUR","2025/12","3213","Stručno usavršavanje zaposlenika","FAKULTET PROMETNIH ZNANOSTI"]
[{"v":222,"d":"222."},"PT. INOVASI INFORMATIK SINERGI","n.p.","30 W. 26th Street, Sixth Floor, NEW YORK",567.42,"EUR","2025/12","3238","Računalne usluge","FAKULTET PROMETNIH ZNANOSTI"]
[{"v":223,"d":"223."},"ZAGRIA D.O.O.\"IQ CENTAR\"","85805332078","SLAVONSKA AVENIJA 26/9,, Zagreb",29.81,"EUR","2025/12","3221","Uredski materijal i ostali materijalni rashodi","FAKULTET PROMETNIH ZNANOSTI"]
[{"v":224,"d":"224."},"TOTIĆ INSTALACIJE D.O.O.","87155292094","IV. STARA PEŠĆENICA 1, ZAGREB",{"v":32390.31,"d":"32,390.31"},"EUR","2025/12","4223","Oprema za održavanje i zaštitu","FAKULTET PROMETNIH ZNANOSTI"]
[{"v":225,"d":"225."},"AVIOTRADE D.O.O. AVIATION CENTER","11223183122","KUČANSKA 24,, Varaždin",{"v":392.5,"d":"392.50"},"EUR","2025/12","3221","Uredski materijal i ostali materijalni rashodi","FAKULTET PROMETNIH ZNANOSTI"]
[{"v":226,"d":"226."},"NOISIA D.O.O.","29516855629","ULICA STJEPANA Pl. JELAČIĆA 6,, Gornji Laduč",{"v":2750,"d":"2,750.00"},"EUR","2025/12","3233","Usluge promidžbe i informiranja","FAKULTET PROMETNIH ZNANOSTI"]
[{"v":227,"d":"227."},"PRINTERAJ XL D.O.O. POSLOVNICA GRAHOROVA 4","31553088667","UTINJSKA ULICA 19C, ZAGREB",{"v":2550.5,"d":"2,550.50"},"EUR","2025/12","3233","Usluge promidžbe i informiranja","FAKULTET PROMETNIH ZNANOSTI"]
[{"v":228,"d":"228."},"PRINTERAJ XL D.O.O. POSLOVNICA GRAHOROVA 4","31553088667","UTINJSKA ULICA 19C, ZAGREB",531.88,"EUR","2025/12","3239","Ostale usluge","FAKULTET PROMETNIH ZNANOSTI"]
[{"v":229,"d":"229."},"LINKS D.O.O.","32614011568","DANKOVEČKA 5,, Zagreb",575.89,"EUR","2025/12","4224","Medicinska i laboratorijska oprema","FAKULTET PROMETNIH ZNANOSTI"]
[{"v":230,"d":"230."},"ZRAČNA LUKA PULA D.O.O. LIŽNJAN","51946493681","VALTURSKO POLJE 210 P.P.89,, Pula",{"v":10,"d":"10.00"},"EUR","2025/12","3235","Zakupnine i najamnine","FAKULTET PROMETNIH ZNANOSTI"]
[{"v":231,"d":"231."},"M.M.BOBAN-BOBAN D.O.O.","53656152979","GAJEVA 9,, Zagreb",{"v":320,"d":"320.00"},"EUR","2025/12","3293","Reprezentacija","FAKULTET PROMETNIH ZNANOSTI"]
[{"v":232,"d":"232."},"PROFIN D.O.O.","56382365450","MALEŠNICA 3/8,, Zagreb",189.75,"EUR","2025/12","3233","Usluge promidžbe i informiranja","FAKULTET PROMETNIH ZNANOSTI"]
[{"v":233,"d":"233."},"EURO-VRT D.O.O.","57968446706","ULICA GRADA GOSPIĆA 3,, Zagreb",218.85,"EUR","2025/12","3232","Usluge tekućeg i investicijskog održavanja","FAKULTET PROMETNIH ZNANOSTI"]
[{"v":234,"d":"234."},"IBUS D.O.O.","62669176940","ILIRSKA 25, ZAGREB",{"v":730,"d":"730.00"},"EUR","2025/12","3239","Ostale usluge","FAKULTET PROMETNIH ZNANOSTI"]
[{"v":235,"d":"235."},"TIBERIUS HOTELS D.O.O.","64007364353","TKALČIĆEVA ULICA 88, ZAGREB",162.37,"EUR","2025/12","3241","Naknade troškova osobama izvan radnog odnosa","FAKULTET PROMETNIH ZNANOSTI"]
[{"v":236,"d":"236."},"MTC D.O.O.","66503016889","ANTE TOPIĆ MIMARE 41, ZAGREB",{"v":3562.5,"d":"3,562.50"},"EUR","2025/12","3237","Intelektualne i osobne usluge","FAKULTET PROMETNIH ZNANOSTI"]
[{"v":237,"d":"237."},"PEVEX D.D. PEVEX D.D.","73660371074","SAVSKA CESTA 84,, Sesvete",277.85,"EUR","2025/12","3221","Uredski materijal i ostali materijalni rashodi","FAKULTET PROMETNIH ZNANOSTI"]
[{"v":238,"d":"238."},"ZAGREBAČKI ELEKTRIČNI TRAMVAJ D.O.O.","82031999604","OZALJSKA 105,, Zagreb",538.86,"EUR","2025/12","3212","Naknade za prijevoz, za rad na terenu i odvojeni život","FAKULTET PROMETNIH ZNANOSTI"]
[{"v":239,"d":"239."},"VODOOPSKRBA I ODVODNJA D.O.O. Odjel pravnih i kadrovskih poslova","83416546499","FOLNEGOVIĆEVA 1,, Zagreb",276.35,"EUR","2025/12","3234","Komunalne usluge","FAKULTET PROMETNIH ZNANOSTI"]
[{"v":240,"d":"240."},"ACQUISITUM MAGNUM D.O.O. ZA TRGOVINU I USLUGE","89836623071","PRILAZ VLADISLAVA BRAJKOVIĆA 4, Zagreb",{"v":2082.87,"d":"2,082.87"},"EUR","2025/12","3221","Uredski materijal i ostali materijalni rashodi","FAKULTET PROMETNIH ZNANOSTI"]
[{"v":241,"d":"241."},"STARI FIJAKER 900 D.O.O.","92464972448","MESNIČKA 6,, Zagreb",{"v":1107,"d":"1,107.00"},"EUR","2025/12","3293","Reprezentacija","FAKULTET PROMETNIH ZNANOSTI"]
[{"v":242,"d":"242."},"JEPPESEN","n.p.","FRANKFURTER STR.233,, Neu-Isenburg",{"v":328,"d":"328.00"},"EUR","2025/12","3221","Uredski materijal i ostali materijalni rashodi","FAKULTET PROMETNIH ZNANOSTI"]
[{"v":243,"d":"243."},"BATAK GRIL FILA USLUGE D.O.O.","03777302074","RADNIČKA CESTA 37 B,, Zagreb",{"v":289.7,"d":"289.70"},"EUR","2025/12","3293","Reprezentacija","FAKULTET PROMETNIH ZNANOSTI"]
[{"v":244,"d":"244."},"LACONIQ D.O.O.","38976470104","ULICA GRADA VUKOVARA 23, ZAGREB",888.89,"EUR","2025/12","3233","Usluge promidžbe i informiranja","FAKULTET PROMETNIH ZNANOSTI"]
[{"v":245,"d":"245."},"RAZVOJNA AGENCIJA SPLIT -RaST D.O.O.","66492874014","BRANIMIROVA OBALA 17, SPLIT",{"v":1450,"d":"1,450.00"},"EUR","2025/12","3235","Zakupnine i najamnine","FAKULTET PROMETNIH ZNANOSTI"]
[{"v":246,"d":"246."},"EASYCHAIR LTD","n.p.","58 BROADWAY, BRAMHALL, , SK7 3BU, STOCKPORT",{"v":795,"d":"795.00"},"EUR","2025/12","3235","Zakupnine i najamnine","FAKULTET PROMETNIH ZNANOSTI"]
[{"v":247,"d":"247."},"EKONOMIK SERVIS D.O.O.","42462741842","2. KRALJEVEC 6 10000, ZAGREB",{"v":125,"d":"125.00"},"EUR","2025/12","3239","Ostale usluge","FAKULTET PROMETNIH ZNANOSTI"]
[{"v":248,"d":"248."},"VANIR 24 D.O.O.","74620769097","BOGOVIĆEVA ULICA 7, ZAGREB",{"v":500,"d":"500.00"},"EUR","2025/12","3235","Zakupnine i najamnine","FAKULTET PROMETNIH ZNANOSTI"]
[{"v":249,"d":"249."},"ČAZMATRANS-PUTNIČKA AGENCIJA d.o.o.","87679956140","Držićeva 4 Zagreb, Zagreb",{"v":395,"d":"395.00"},"EUR","2025/12","3239","Ostale usluge","FAKULTET PROMETNIH ZNANOSTI"]
[{"$f":"ROW(A250)","v":{"v":250,"d":"250."}},"ACQUISITUM MAGNUM D.O.O. ZA TRGOVINU I USLUGE","89836623071","PRILAZ VLADISLAVA BRAJKOVIĆA 4, Zagreb",{"v":29970.2,"d":"29,970.20"},"EUR","2025/12","4221","Uredska oprema i namještaj","FAKULTET PROMETNIH ZNANOSTI"]
[{"v":251,"d":"251."},"LINKMEDIA, OBRT ZA PROMOCIJU, POSLOVNO SAVJETOVANJE I EDUKACIJU  VL. MARIO PINTAR","GDPR","GDPR",{"v":2050,"d":"2,050.00"},"EUR","2025/12","3238","Računalne usluge","FAKULTET PROMETNIH ZNANOSTI"]
[{"v":252,"d":"252."},"TELECARE D.O.O.","35315379989","BREZJE SAMOBORSKO, SIGET  I/25, Sveta Nedjelja",58.06,"EUR","2025/12","3232","Usluge tekućeg i investicijskog održavanja","FAKULTET PROMETNIH ZNANOSTI"]
[{"v":253,"d":"253."},"ZLATNI OCEAN","52620978036","TRG DRAGE IBLERA 5,, Zagreb",181.63,"EUR","2025/12","3221","Uredski materijal i ostali materijalni rashodi","FAKULTET PROMETNIH ZNANOSTI"]
[{"v":254,"d":"254."},"LIMES PLUS D.O.O.","57560191883","HEINZELOVA 60,, Zagreb",{"v":136.5,"d":"136.50"},"EUR","2025/12","3221","Uredski materijal i ostali materijalni rashodi","FAKULTET PROMETNIH ZNANOSTI"]
[{"v":255,"d":"255."},"NARODNE NOVINE D.D.","64546066176","SAVSKI GAJ XIII. PUT 6,, Zagreb",810.75,"EUR","2025/12","3233","Usluge promidžbe i informiranja","FAKULTET PROMETNIH ZNANOSTI"]
[{"v":256,"d":"256."},"ZAGREBAČKI HODLING d.o.o. PODRUŽNICA ČISTOĆA","85584865987","RADNIČKA CESTA 82,, Zagreb",715.09,"EUR","2025/12","3234","Komunalne usluge","FAKULTET PROMETNIH ZNANOSTI"]
[{"v":257,"d":"257."},"FINA-FINANCIJSKA AGENCIJA","85821130368","ZAGREB,UL.GRADA VUKOVARA 70,, ZAGREB",8.91,"EUR","2025/12","3221","Uredski materijal i ostali materijalni rashodi","FAKULTET PROMETNIH ZNANOSTI"]
[{"v":258,"d":"258."},"ŠTASNI D.O.O.","96874956915","SAMOBORSKA 294, ZAGREB",{"v":1420.08,"d":"1,420.08"},"EUR","2025/12","3232","Usluge tekućeg i investicijskog održavanja","FAKULTET PROMETNIH ZNANOSTI"]
[{"v":259,"d":"259."},"A1 HRVATSKA D.O.O.","29524210204","VRTNI PUT 1,, Zagreb",7.38,"EUR","2025/12","3231","Usluge telefona, interneta, pošte i prijevoza","FAKULTET PROMETNIH ZNANOSTI"]
[{"v":260,"d":"260."},"INFOMAR D.O.O. ZA INFORMATIČKI INŽENJERING I POSLOVNE USLUGE","47828243632","II RAVNICE 37,, Zagreb",962.24,"EUR","2025/12","3238","Računalne usluge","FAKULTET PROMETNIH ZNANOSTI"]
[{"v":261,"d":"261."},"KONTO D.O.O","59143170280","ZRINSKA 46, POŽEGA",{"v":1400,"d":"1,400.00"},"EUR","2025/12","3238","Računalne usluge","FAKULTET PROMETNIH ZNANOSTI"]
[{"v":262,"d":"262."},"STUDENTSKI CENTAR VARAŽDIN","64945507350","JULIJA MARLIĆA BB,, Varaždin",{"v":53.7,"d":"53.70"},"EUR","2025/12","3237","Intelektualne i osobne usluge","FAKULTET PROMETNIH ZNANOSTI"]
[{"v":263,"d":"263."},"TELEMACH HRVATSKA D.O.O.","70133616033","JOSIPA MAROHNIĆA 1, ZAGREB",{"v":1375.81,"d":"1,375.81"},"EUR","2025/12","3231","Usluge telefona, interneta, pošte i prijevoza","FAKULTET PROMETNIH ZNANOSTI"]
[{"v":264,"d":"264."},"ČISTOĆA ZADAR","84923155727","S.RADIĆA 33,, Zadar",17.59,"EUR","2025/12","3234","Komunalne usluge","FAKULTET PROMETNIH ZNANOSTI"]
[{"v":265,"d":"265."},"Živa voda d.o.o.","86255713939","Karlovačka cesta 92 10020, Zagreb",600.75,"EUR","2025/12","3235","Zakupnine i najamnine","FAKULTET PROMETNIH ZNANOSTI"]
[{"v":266,"d":"266."},"REFUNDACIJA ZAPOSLENICI","n.p.","n.p.",{"v":20,"d":"20.00"},"EUR","2025/12","3294","Članarine i norme","FAKULTET PROMETNIH ZNANOSTI"]
[{"v":267,"d":"267."},"DVV MEDIA GROUP","n.p.","NORDKANALSTRASSE 36,, HAMBURG",{"v":73.4,"d":"73.40"},"EUR","2025/12","3221","Uredski materijal i ostali materijalni rashodi","FAKULTET PROMETNIH ZNANOSTI"]
[{"v":268,"d":"268."},"SAOBRAĆAJNI FAKULTET BEOGRAD","n.p.","VOJVODE STEPE 305, BEOGRAD",{"v":170,"d":"170.00"},"EUR","2025/12","3213","Stručno usavršavanje zaposlenika","FAKULTET PROMETNIH ZNANOSTI"]
[{"v":269,"d":"269."},"SENETIC GMBH","n.p.","NJEMAČKA,, Kronstadter strasse 4",{"v":722.5,"d":"722.50"},"EUR","2025/12","4221","Uredska oprema i namještaj","FAKULTET PROMETNIH ZNANOSTI"]
[{"v":270,"d":"270."},"SUSTAVI ZAGOREC, OBRT","GDPR","GDPR",772.63,"EUR","2025/12","4223","Oprema za održavanje i zaštitu","FAKULTET PROMETNIH ZNANOSTI"]
[{"v":271,"d":"271."},"AUTO SERVIS CIKRON D.O.O.","03005812112","KARLOVAČKA 181, ZAGREB-NOVI ZAGREB",{"v":2267.38,"d":"2,267.38"},"EUR","2025/12","3232","Usluge tekućeg i investicijskog održavanja","FAKULTET PROMETNIH ZNANOSTI"]
[{"v":272,"d":"272."},"GRAD ZADAR, UPRAVNI ODJEL ZA KOM. DJELAT","09933651854","NARODNI TRG 1, ZADAR",12.67,"EUR","2025/12","3234","Komunalne usluge","FAKULTET PROMETNIH ZNANOSTI"]
[{"v":273,"d":"273."},"AUTOTRANS d.d.","19819724166","ŠETALIŠTE 20.TRAVNJA 18, CRES",{"v":525,"d":"525.00"},"EUR","2025/12","3239","Ostale usluge","FAKULTET PROMETNIH ZNANOSTI"]
[{"v":274,"d":"274."},"MAISTRA D.D.","25190869349","OBALA V.NAZORA 6,, Rovinj (Rovigno)",{"v":540,"d":"540.00"},"EUR","2025/12","3211","Službena putovanja","FAKULTET PROMETNIH ZNANOSTI"]
[{"v":275,"d":"275."},"PAMETNA KUĆA D.O.O.","33650879020","POPOVIĆEVA 8, ZAGREB",{"v":937.5,"d":"937.50"},"EUR","2025/12","3233","Usluge promidžbe i informiranja","FAKULTET PROMETNIH ZNANOSTI"]
[{"v":276,"d":"276."},"LESNINA D.O.O.","36998794856","SLAVONSKA AVENIJA 106,, Zagreb",127.45,"EUR","2025/12","4221","Uredska oprema i namještaj","FAKULTET PROMETNIH ZNANOSTI"]
[{"v":277,"d":"277."},"AEROKLUB ZAGREB U STEČAJU","40552229866","JURIŠIĆEVA 5/1,, Zagreb",{"v":3352.7,"d":"3,352.70"},"EUR","2025/12","3235","Zakupnine i najamnine","FAKULTET PROMETNIH ZNANOSTI"]
[{"v":278,"d":"278."},"PROTIS D.O.O.","42113416920","NEHAJSKA 59, Zagreb",{"v":2166.6,"d":"2,166.60"},"EUR","2025/12","4221","Uredska oprema i namještaj","FAKULTET PROMETNIH ZNANOSTI"]
[{"v":279,"d":"279."},"HRT HRVATSKA RADIO TELEVIZIJA","68419124305","PRISAVLJE 3,, Zagreb",{"v":53.1,"d":"53.10"},"EUR","2025/12","3231","Usluge telefona, interneta, pošte i prijevoza","FAKULTET PROMETNIH ZNANOSTI"]
[{"v":280,"d":"280."},"PLENORIA D.O.O.","69996420118","ZVONIGRADSKA 14, ZAGREB",{"v":1125,"d":"1,125.00"},"EUR","2025/12","3213","Stručno usavršavanje zaposlenika","FAKULTET PROMETNIH ZNANOSTI"]
[{"v":281,"d":"281."},"ZAGRIA D.O.O.\"IQ CENTAR\"","85805332078","SLAVONSKA AVENIJA 26/9,, Zagreb",{"v":1879.99,"d":"1,879.99"},"EUR","2025/12","4221","Uredska oprema i namještaj","FAKULTET PROMETNIH ZNANOSTI"]
[{"v":282,"d":"282."},"QUAHWA D.O.O.","96516152119","ULICA NIKOLE TESLE 9/1, ZAGREB",{"v":321,"d":"321.00"},"EUR","2025/12","3293","Reprezentacija","FAKULTET PROMETNIH ZNANOSTI"]
[]
["UKUPNO:",{"$nulls":3},{"$f":"SUBTOTAL(9,E7:E289)","v":{"v":1437762.089999999,"d":"1,437,762.09"}}]
[]
["Napomena: podatak o iznosu isplate na kontu \"3237 Intelektualne i osobne usluge\", osim neto iznosa (i PDV-a ukoliko je osoba obveznik PDV-a) koji je isplaćen fizičkoj osobi, sadržava uplaćeni porez na dohodak te doprinose za mirovinsko i obvezno zdravstveno osiguranje."]

{"sheet":"Sheet2","index":1,"n_rows":0,"n_cols":0,"rows_kept":0}